bitfinex-derivatives/quotes_BNBF0:USTF0_20250908
["timestamp","ask_amount","ask_price","bid_price","bid_amount"]
[1757298947845,1.02008215,876.63,875.62,0.76774726]
[1757298948450,1.02008215,876.72,875.58,0.76774726]
[1757298948750,1.53388886,876.93,875.53,0.19816075]
[1757298948751,1.02008215,876.75,875.61,0.76774726]
[1757298949150,1.02008215,876.74,875.61,0.76774726]
[1757298951450,1.02008215,876.74,875.62,0.76774726]
[1757298951949,1.02008215,876.73,875.62,0.76774726]
[1757298953251,1.02008215,876.71,875.63,0.76774726]
[1757298953554,1.02008215,876.71,875.53,0.19816075]
[1757298953751,1.02008215,876.71,875.63,0.76531168]
[1757298954354,1.02008215,876.71,875.64,0.76531168]
[1757298955050,1.02008215,876.7,875.64,0.76531168]
[1757298955254,1.02008215,876.7,875.65,0.76531168]
[1757298955555,1.02008215,876.69,875.65,1.92831168]
[1757298956151,1.02008215,876.7,875.65,1.92831168]
[1757298956355,1.02008215,876.69,875.66,0.76531168]
[1757298956751,1.02008215,876.62,875.71,0.76531168]
[1757298956957,1.02008215,876.87,875.74,0.76531168]
[1757298957154,1.02008215,877.06,875.85,0.76531168]
[1757298957354,1.02008215,877.14,875.9,0.76531168]
[1757298957552,1.02008215,877.16,875.91,0.76531168]
[1757298958458,1.02008215,877.16,875.65,2.18692054]
[1757298958459,1.02008215,877.17,875.89,0.76531168]
[1757298958757,1.02008215,877.33,876.05,0.76531168]
[1757298958956,1.02008215,877.32,876.06,0.76531168]
[1757298959557,1.02008215,877.33,876.05,0.76531168]
[1757298961561,1.02008215,877.34,876.04,0.76531168]
[1757298962062,1.02008215,877.35,876.04,0.76531168]
[1757298962362,1.02008215,877.36,876.03,0.76531168]
[1757298963262,1.02008215,877.37,876.03,0.76531168]
[1757298964362,1.02008215,877.38,876.02,0.76531168]
[1757298965363,1.02008215,877.38,876.01,0.76531168]
[1757298966164,1.02008215,877.39,876.01,0.76531168]
[1757298966461,1.02008215,877.39,876.0,0.76531168]
[1757298967064,1.02008215,877.34,876.03,0.76531168]
[1757298967365,1.02008215,877.23,876.07,0.76531168]
[1757298967564,1.02008215,877.16,876.1,0.76531168]
[1757298968265,1.02008215,877.17,876.09,0.76531168]
[1757298968866,1.02008215,876.9,875.84,0.76531168]
[1757298969365,1.02008215,876.9,875.83,0.76531168]
[1757298969566,1.02008215,876.91,875.83,0.76531168]
[1757298970368,1.02008215,876.91,875.82,0.76531168]
[1757298971364,1.02008215,876.92,875.82,0.76531168]
[1757298972269,1.02008215,876.9,875.82,0.76531168]
[1757298972468,1.02008215,876.91,875.82,0.76531168]
[1757298973364,1.02008215,876.9,875.81,0.76531168]
[1757298973568,1.02008215,876.89,875.81,0.76531168]
[1757298973767,1.02008215,876.9,875.81,0.76531168]
[1757298974366,1.02008215,876.9,875.8,0.76531168]
[1757298974571,1.02008215,876.91,875.8,0.76531168]
[1757298975366,1.02008215,876.92,875.8,0.76531168]
[1757298975971,1.02008215,876.93,875.8,0.76531168]
[1757298976168,1.02008215,876.92,875.81,0.76531168]
[1757298976471,1.02008215,876.92,875.8,0.76531168]
[1757298977372,1.02008215,876.93,875.8,0.76531168]
[1757298977572,1.02008215,876.92,875.79,0.76531168]
[1757298977772,1.02008215,876.93,875.78,0.76531168]
[1757298978470,1.02008215,876.94,875.78,0.76531168]
[1757298978669,1.02008215,877.07,875.91,0.76531168]
[1757298978873,1.02008215,877.08,875.9,0.76531168]
[1757298979270,1.02008215,877.08,875.91,0.76531168]
[1757298979571,1.02008215,877.09,875.9,0.76531168]
[1757298980074,1.53388886,877.26,875.9,0.76531168]
[1757298980075,1.02008215,877.08,875.9,0.76531168]
[1757298980373,1.02008215,877.09,875.89,0.76531168]
[1757298981878,1.02008215,877.1,875.89,0.76531168]
[1757298983379,1.02008215,877.11,875.89,0.76531168]
[1757298983577,1.02008215,877.22,875.84,0.76531168]
[1757298984676,1.02008215,877.21,875.83,0.76531168]
[1757298986080,1.02008215,877.21,875.84,0.76531168]
[1757298987582,1.02008215,877.2,875.84,0.76531168]
[1757298988481,1.02008215,877.2,875.65,1.163]
[1757298988682,1.02008215,877.15,875.79,0.76163185]
[1757298990188,1.02008215,877.16,875.79,0.76163185]
[1757298990488,1.02008215,877.15,875.79,0.76163185]
[1757298991285,1.02008215,877.16,875.8,0.76163185]
[1757298992388,1.02008215,877.16,875.65,1.163]
[1757298992389,1.02008215,877.04,875.85,0.76163185]
[1757298993386,1.02008215,877.03,875.86,0.76163185]
[1757298994188,1.02008215,877.04,875.86,0.76163185]
[1757298994389,1.02008215,877.03,875.86,0.76163185]
[1757298994590,1.02008215,877.04,875.86,0.76163185]
[1757298995389,1.02008215,877.03,875.87,0.76163185]
[1757298996085,1.02008215,877.04,875.86,0.76163185]
[1757298996386,1.02008215,877.38,875.67,0.76163185]
[1757298996588,1.02008215,877.1,875.65,1.163]
[1757298996992,1.02008215,877.0,875.68,0.76163185]
[1757298997193,1.02008215,876.95,875.71,0.76163185]
[1757298997392,1.02008215,876.94,875.71,0.76163185]
[1757298997587,1.02008215,876.98,875.76,0.76163185]
[1757298998088,2.54877251,877.97,875.75,0.76163185]
[1757298998089,1.02008215,877.0,875.75,0.76163185]
[1757298998290,1.02008215,876.99,875.75,0.76163185]
[1757298998795,1.02008215,876.98,875.75,0.76163185]
[1757298998993,2.54877251,877.99,875.8,0.76163185]
[1757298998994,1.02008215,877.0,875.8,0.76163185]
[1757298999490,1.02008215,877.01,875.83,0.76163185]
[1757298999789,1.02008215,877.01,875.87,0.76163185]
[1757299000095,1.02008215,877.16,875.83,0.76163185]
[1757299000292,1.02008215,877.16,875.53,0.19816075]
[1757299000293,1.02008215,877.38,876.04,0.76163185]
[1757299000492,1.02008215,877.4,876.06,0.76163185]
[1757299000896,1.02008215,877.39,876.06,0.76163185]
[1757299001100,1.02008215,877.42,876.05,0.76163185]
[1757299002099,1.02008215,877.37,876.07,0.76163185]
[1757299002296,1.02008215,877.38,876.06,0.76163185]
[1757299002499,0.19813085,878.34,876.07,0.76163185]
[1757299002500,1.02008215,877.37,876.07,0.76163185]
[1757299003002,1.02008215,877.36,876.07,0.76163185]
[1757299003201,1.02008215,877.34,876.08,0.76163185]
[1757299003497,1.02008215,877.32,876.12,0.76163185]
[1757299003697,1.02008215,877.3,876.13,0.76163185]
[1757299004000,1.02008215,877.32,876.12,0.76163185]
[1757299004206,1.02008215,877.32,876.13,0.76163185]
[1757299004404,1.02008215,877.33,876.13,0.76163185]
[1757299004908,1.02008215,877.31,876.14,0.76163185]
[1757299005203,1.02008215,877.31,876.13,0.76163185]
[1757299005505,1.02008215,877.3,876.17,0.76163185]
[1757299005807,1.02008215,877.31,876.17,0.76163185]
[1757299006107,1.02008215,877.32,876.2,0.76163185]
[1757299006307,1.02008215,877.35,876.23,0.76163185]
[1757299006605,1.02008215,877.4,876.21,0.76163185]
[1757299007306,1.02008215,877.41,876.2,0.76163185]
[1757299007503,1.02008215,877.41,876.21,0.76163185]
[1757299007707,1.02008215,877.41,876.2,0.76163185]
[1757299008309,1.02008215,877.42,876.2,0.76163185]
[1757299008606,1.02008215,877.41,876.2,0.76163185]
[1757299008810,1.02008215,877.6,876.39,0.76163185]
[1757299009305,1.02008215,877.6,876.38,0.76163185]
[1757299009907,0.19813085,878.34,876.36,0.76163185]
[1757299009908,1.02008215,877.71,876.36,0.76163185]
[1757299010111,1.02008215,877.72,876.37,0.76163185]
[1757299010308,1.02008215,877.75,876.4,0.76163185]
[1757299010510,1.02008215,877.8,876.44,0.76163185]
[1757299011012,1.02008215,877.71,876.47,0.76163185]
[1757299011508,1.02008215,877.74,876.46,0.76163185]
[1757299011806,1.53388886,877.94,876.47,0.76163185]
[1757299011807,1.02008215,877.75,876.47,0.76163185]
[1757299012010,1.02008215,877.76,876.46,0.76163185]
[1757299012209,1.02008215,877.74,876.47,0.76163185]
[1757299012813,1.02008215,877.79,876.47,0.76163185]
[1757299013111,1.02008215,877.8,876.47,0.76163185]
[1757299013313,1.02008215,877.82,876.46,0.76163185]
[1757299013510,1.02008215,877.83,876.46,0.76163185]
[1757299013710,1.02008215,877.83,876.63,0.76163185]
[1757299013913,1.02008215,877.85,876.64,0.76163185]
[1757299014414,1.02008215,877.95,876.59,0.76163185]
[1757299014615,1.53388886,878.15,875.88,1.276]
[1757299014616,1.02008215,878.05,876.68,0.76163185]
[1757299014816,1.02008215,878.0,876.7,0.76163185]
[1757299015016,1.02008215,877.97,876.73,0.76163185]
[1757299015213,1.02008215,877.96,876.74,0.76163185]
[1757299015415,1.02008215,878.0,876.72,0.76163185]
[1757299015612,1.02008215,877.98,876.72,0.76163185]
[1757299015917,1.02008215,878.05,876.74,0.76163185]
[1757299016120,1.02008215,878.11,876.72,0.76163185]
[1757299016318,1.02008215,878.15,876.68,0.76163185]
[1757299016515,1.02008215,878.15,876.7,0.76163185]
[1757299016715,1.02008215,878.18,876.76,0.76163185]
[1757299017218,1.02008215,878.45,876.67,0.76163185]
[1757299017416,1.02008215,878.45,876.65,0.76163185]
[1757299017616,1.02008215,878.47,876.78,0.76163185]
[1757299017918,1.02008215,878.45,876.84,0.76163185]
[1757299018318,1.02008215,878.52,876.79,0.76163185]
[1757299018514,1.02008215,878.76,876.85,0.76163185]
[1757299018715,1.02008215,878.46,876.85,0.76163185]
[1757299019016,1.02008215,878.48,876.56,0.76163185]
[1757299019420,1.02008215,878.52,876.52,0.76163185]
[1757299019714,1.02008215,878.54,876.51,0.76163185]
[1757299020316,1.02008215,878.43,876.53,0.76163185]
[1757299020520,1.02008215,878.38,876.47,0.76163185]
[1757299020717,1.02008215,878.39,876.48,0.76163185]
[1757299021016,1.02008215,878.29,876.52,0.76163185]
[1757299021220,1.02008215,878.32,876.49,0.76163185]
[1757299021521,1.02008215,878.27,876.49,0.76163185]
[1757299021715,1.02008215,878.27,876.14,0.19795334]
[1757299021716,1.02008215,878.25,876.44,0.76163185]
[1757299021919,1.02008215,878.24,876.44,0.76163185]
[1757299022120,1.02008215,878.27,876.43,0.76163185]
[1757299022316,1.02008215,878.28,876.42,0.76163185]
[1757299022520,1.02008215,878.41,876.47,0.76163185]
[1757299022718,1.02008215,878.39,876.51,0.76163185]
[1757299023224,1.02008215,878.42,876.49,0.76163185]
[1757299023422,1.02008215,878.48,876.54,0.76163185]
[1757299023722,1.02008215,878.5,876.53,0.76163185]
[1757299024022,1.02008215,878.5,876.29,1.02392054]
[1757299024023,1.02008215,878.6,876.56,0.76163185]
[1757299024221,1.02008215,878.63,876.53,0.76163185]
[1757299024723,1.02008215,878.61,876.54,0.76163185]
[1757299025020,1.02008215,878.65,876.52,0.76163185]
[1757299025217,1.02008215,878.65,876.14,0.19795334]
[1757299025218,1.02008215,878.68,876.5,0.76163185]
[1757299025422,1.02008215,878.68,876.49,0.76163185]
[1757299026127,1.02008215,878.71,876.47,0.76163185]
[1757299027121,1.02008215,878.71,876.14,0.19795334]
[1757299027122,1.02008215,878.73,876.44,0.76163185]
[1757299028324,1.02008215,878.76,876.42,0.76163185]
[1757299028721,1.02008215,879.02,876.51,0.76163185]
[1757299029222,1.02008215,879.04,876.5,0.76163185]
[1757299029525,1.02008215,879.05,876.49,0.76163185]
[1757299030122,1.02008215,879.09,876.42,0.76163185]
[1757299030326,1.02008215,878.96,876.34,0.76163185]
[1757299031022,1.02008215,878.94,876.35,0.76163185]
[1757299031227,1.02008215,878.84,876.52,0.76163185]
[1757299031425,1.02008215,878.95,876.52,0.76163185]
[1757299031629,1.02008215,878.79,876.58,0.76163185]
[1757299031829,1.02008215,878.78,876.59,0.76163185]
[1757299032126,1.02008215,878.79,876.57,0.76163185]
[1757299032529,1.02008215,878.79,876.56,0.76163185]
[1757299033228,1.02008215,878.8,876.62,0.76163185]
[1757299033528,1.02008215,879.07,876.63,0.76163185]
[1757299033828,1.02008215,879.08,876.62,0.76163185]
[1757299034029,1.02008215,879.16,876.72,0.76163185]
[1757299034230,1.02008215,879.19,876.71,0.76163185]
[1757299034931,1.02008215,879.15,876.72,0.76163185]
[1757299035230,1.02008215,879.15,876.76,0.76163185]
[1757299035430,1.02008215,879.14,876.76,0.76163185]
[1757299035730,1.02008215,879.14,876.75,0.76163185]
[1757299036131,1.02008215,879.16,876.73,0.76163185]
[1757299036327,1.02008215,879.03,876.68,0.76163185]
[1757299036630,1.02008215,879.04,876.62,0.76163185]
[1757299037127,1.02008215,879.05,876.61,0.76163185]
[1757299038129,1.02008215,879.08,876.62,0.76163185]
[1757299038329,1.02008215,879.07,876.62,0.76163185]
[1757299038628,1.02008215,879.03,876.57,0.76163185]
[1757299038832,1.02008215,879.02,876.57,0.76163185]
[1757299039031,1.02008215,879.01,876.55,0.76163185]
[1757299039234,1.02008215,879.02,876.54,0.76163185]
[1757299039431,1.02008215,879.02,876.55,0.76163185]
[1757299040033,1.02008215,879.03,876.55,0.76163185]
[1757299040333,1.02008215,879.11,876.49,0.76163185]
[1757299040534,1.02008215,879.03,876.41,0.76163185]
[1757299040733,1.02008215,879.04,876.41,0.76163185]
[1757299040931,1.02008215,879.04,876.42,0.76163185]
[1757299041131,1.02008215,879.04,876.41,0.76163185]
[1757299041327,1.02008215,879.04,876.15,1.02392054]
[1757299041328,1.02008215,879.03,876.4,0.76163185]
[1757299041533,1.02008215,878.99,876.41,0.76163185]
[1757299041733,1.02008215,878.99,876.17,1.02392054]
[1757299041734,1.02008215,878.94,876.36,0.76163185]
[1757299042034,1.02008215,878.81,876.42,1.096]
[1757299042735,1.02008215,878.9,876.42,1.096]
[1757299042937,1.02008215,878.84,876.42,1.096]
[1757299043136,1.02008215,878.83,876.42,1.096]
[1757299044435,1.02008215,878.81,876.42,1.096]
[1757299045235,1.02008215,878.8,876.42,1.096]
[1757299045735,1.02008215,878.78,876.42,1.096]
[1757299046032,1.02008215,878.67,876.42,1.096]
[1757299046432,1.02008215,878.51,876.42,1.096]
[1757299047231,1.02008215,878.5,876.42,1.096]
[1757299047836,1.02008215,878.51,876.42,1.096]
[1757299048734,1.02008215,878.64,876.42,1.096]
[1757299048937,1.02008215,878.66,876.42,1.096]
[1757299049139,1.02008215,878.64,876.42,1.096]
[1757299050238,1.02008215,878.64,876.42,1.84639426]
[1757299050434,1.02008215,878.63,876.43,0.75039426]
[1757299051235,1.02008215,878.61,876.42,1.84639426]
[1757299051437,1.02008215,878.6,876.43,0.75039426]
[1757299051637,1.02008215,878.55,876.45,0.75039426]
[1757299052141,1.02008215,878.53,876.44,0.75039426]
[1757299055144,1.02008215,878.5,876.49,0.75039426]
[1757299055447,1.02008215,878.48,876.5,0.75039426]
[1757299056146,1.02008215,878.48,876.51,0.75039426]
[1757299056348,1.02008215,878.46,876.52,0.75039426]
[1757299057249,1.02008215,878.46,876.53,0.75039426]
[1757299057448,1.02008215,878.43,876.55,0.75039426]
[1757299057848,1.02008215,878.54,876.42,1.096]
[1757299058152,1.02008215,878.52,876.42,1.096]
[1757299058354,1.02008215,878.49,876.42,1.096]
[1757299058753,1.02008215,878.3,876.42,1.096]
[1757299059350,1.02008215,878.27,876.42,1.096]
[1757299059649,1.02008215,878.29,876.42,1.096]
[1757299060252,1.02008215,878.22,876.42,1.096]
[1757299060450,1.02008215,878.16,876.42,1.096]
[1757299060956,1.02008215,878.1,876.42,1.096]
[1757299061352,1.02008215,878.09,876.42,1.096]
[1757299061953,1.02008215,878.1,876.42,1.096]
[1757299062250,1.02008215,877.93,876.42,1.096]
[1757299062449,1.02008215,877.84,876.42,1.096]
[1757299063454,1.02008215,877.82,876.42,1.096]
[1757299064153,1.02008215,877.81,876.42,1.096]
[1757299064351,1.02008215,877.8,876.42,1.096]
[1757299065356,1.02008215,877.79,876.42,1.096]
[1757299066357,1.02008215,877.78,876.42,1.096]
[1757299067357,1.02008215,877.77,876.42,1.096]
[1757299068259,1.02008215,877.78,876.42,1.096]
[1757299068555,1.02008215,877.77,876.42,1.096]
[1757299068759,1.02008215,877.78,876.42,1.096]
[1757299069155,1.53388886,877.96,876.42,1.096]
[1757299069156,1.02008215,877.85,876.42,1.096]
[1757299069361,1.02008215,877.84,876.42,1.096]
[1757299069861,1.02008215,877.9,876.42,1.096]
[1757299070361,1.02008215,877.97,876.42,1.096]
[1757299070658,1.02008215,877.95,876.42,1.096]
[1757299071656,0.19783799,879.51,876.42,1.096]
[1757299071657,1.02008215,877.94,876.42,1.096]
[1757299071957,1.02008215,877.92,876.42,1.096]
[1757299074159,1.02008215,877.93,876.42,1.096]
[1757299075058,1.02008215,877.94,876.42,1.096]
[1757299075965,1.02008215,877.93,876.42,1.096]
[1757299076165,1.02008215,877.94,876.42,1.096]
[1757299077466,1.02008215,877.92,876.42,1.096]
[1757299078461,1.02008215,877.88,876.42,1.096]
[1757299078863,1.02008215,877.85,876.42,1.096]
[1757299079164,1.02008215,877.74,876.42,1.096]
[1757299079365,1.02008215,877.75,876.42,1.096]
[1757299079968,1.02008215,877.7,876.42,1.096]
[1757299080566,1.02008215,877.69,876.42,1.096]
[1757299081170,1.02008215,877.67,876.42,1.096]
[1757299081472,1.02008215,877.68,876.42,1.096]
[1757299082266,1.02008215,877.7,876.42,1.096]
[1757299084371,1.53388886,877.88,876.42,1.096]
[1757299084372,1.02008215,877.71,876.42,1.096]
[1757299084972,1.02008215,877.71,876.14,0.19795334]
[1757299085972,1.02008215,877.73,876.14,0.19795334]
[1757299086174,1.02008215,877.97,876.14,0.19795334]
[1757299086466,1.02008215,877.96,876.14,0.19795334]
[1757299087668,1.02008215,878.06,876.14,0.19795334]
[1757299087869,1.02008215,878.19,876.17,0.75039426]
[1757299088772,1.02008215,878.17,876.29,0.75039426]
[1757299089472,1.02008215,878.17,876.3,0.75039426]
[1757299089976,1.02008215,878.18,876.29,0.75039426]
[1757299090174,1.02008215,878.17,876.3,0.75039426]
[1757299090676,2.54877251,879.39,876.3,0.75039426]
[1757299090677,1.02008215,878.18,876.3,0.75039426]
[1757299091792,1.02008215,878.15,876.31,0.75039426]
[1757299091980,1.02008215,878.06,876.35,0.75039426]
[1757299092181,1.02008215,878.07,876.35,0.75039426]
[1757299092381,1.02008215,878.27,876.4,0.75039426]
[1757299092581,1.02008215,878.45,876.47,0.75039426]
[1757299092781,1.02008215,878.48,876.47,0.75039426]
[1757299092981,1.02008215,878.5,876.46,0.75039426]
[1757299093277,1.02008215,878.53,876.45,0.75039426]
[1757299093481,1.02008215,878.52,876.45,0.75039426]
[1757299094078,1.02008215,878.49,876.46,0.75039426]
[1757299094283,1.02008215,878.48,876.47,0.75039426]
[1757299095185,1.02008215,878.46,876.49,0.75039426]
[1757299095379,1.02008215,878.46,876.5,0.75039426]
[1757299096180,1.02008215,878.46,876.15,1.393]
[1757299096181,1.02008215,878.44,876.52,0.75039426]
[1757299096384,1.02008215,878.45,876.51,0.75039426]
[1757299096680,1.02008215,878.44,876.52,0.75039426]
[1757299096881,1.02008215,878.42,876.53,0.75039426]
[1757299097088,1.02008215,878.37,876.55,0.75039426]
[1757299097287,1.02008215,878.37,876.56,0.75039426]
[1757299097485,2.54877251,879.75,876.58,0.75039426]
[1757299097486,1.02008215,878.44,876.58,0.75039426]
[1757299097680,1.02008215,878.48,876.66,0.75039426]
[1757299097879,1.02008215,878.5,876.66,0.75039426]
[1757299098086,1.02008215,878.48,876.67,0.75039426]
[1757299098586,1.02008215,878.47,876.67,0.75039426]
[1757299098882,1.02008215,878.63,876.83,0.75039426]
[1757299099283,1.02008215,878.62,876.85,0.75039426]
[1757299100085,1.53388886,878.9,876.15,1.393]
[1757299100086,1.02008215,878.6,876.86,0.75039426]
[1757299101286,1.02008215,878.59,876.87,0.75039426]
[1757299101981,1.02008215,878.54,876.88,0.75039426]
[1757299102187,1.02008215,878.54,876.9,0.75039426]
[1757299102384,1.02008215,878.55,876.89,0.75039426]
[1757299103191,1.02008215,878.54,876.9,0.75039426]
[1757299106094,1.02008215,878.5,876.92,0.75039426]
[1757299106393,1.02008215,878.5,876.91,0.75039426]
[1757299106691,1.02008215,878.36,876.8,0.75039426]
[1757299107091,1.02008215,878.36,876.79,0.75039426]
[1757299107391,1.02008215,878.35,876.8,0.75039426]
[1757299107591,3.56828151,880.03,876.78,0.75039426]
[1757299107592,1.02008215,878.34,876.78,0.75039426]
[1757299107795,1.02008215,878.33,876.79,0.75039426]
[1757299108394,1.02008215,878.31,876.77,0.75039426]
[1757299108790,1.02008215,878.03,876.49,0.75039426]
[1757299109090,1.02008215,878.1,876.46,0.75039426]
[1757299109792,1.02008215,878.11,876.47,0.75039426]
[1757299109990,1.02008215,878.12,876.48,0.75039426]
[1757299111291,1.02008215,878.13,876.48,0.75039426]
[1757299111592,1.02008215,878.14,876.49,0.75039426]
[1757299112592,1.02008215,878.15,876.5,0.75039426]
[1757299113294,1.02008215,878.14,876.49,0.75039426]
[1757299115095,1.02008215,878.15,876.49,0.75039426]
[1757299115299,1.02008215,878.12,876.5,0.75039426]
[1757299115494,1.02008215,878.13,876.51,0.75039426]
[1757299116200,1.02008215,878.13,876.5,0.75039426]
[1757299116398,1.02008215,878.11,876.5,0.75039426]
[1757299116596,1.02008215,878.12,876.51,0.75039426]
[1757299117501,1.02008215,878.11,876.51,0.75039426]
[1757299117798,1.53388886,878.35,876.15,1.393]
[1757299117799,1.02008215,878.1,876.52,0.75039426]
[1757299118301,1.02008215,878.11,876.52,0.75039426]
[1757299118498,1.02008215,878.13,876.54,0.75039426]
[1757299118798,1.02008215,878.17,876.72,0.75039426]
[1757299119198,1.02008215,878.17,876.73,0.75039426]
[1757299119702,1.02008215,878.13,876.75,0.75039426]
[1757299119902,1.02008215,878.14,876.75,0.75039426]
[1757299120203,1.02008215,878.14,876.74,0.75039426]
[1757299120403,1.02008215,878.13,876.75,0.75039426]
[1757299121203,1.02008215,878.13,876.74,0.75039426]
[1757299121899,1.02008215,878.15,876.74,0.75039426]
[1757299122100,1.02008215,878.14,876.74,0.75039426]
[1757299122504,2.54877251,879.05,876.74,0.75039426]
[1757299122505,1.02008215,878.34,876.74,0.75039426]
[1757299123007,1.02008215,878.35,876.74,0.75039426]
[1757299123406,1.02008215,878.35,876.75,1.194]
[1757299125406,1.02008215,878.34,876.75,1.194]
[1757299126203,1.02008215,878.33,876.75,1.194]
[1757299126407,1.02008215,878.34,876.75,1.194]
[1757299127109,1.02008215,878.33,876.75,1.194]
[1757299127710,1.02008215,878.34,876.75,1.194]
[1757299128713,1.02008215,878.3,876.75,1.194]
[1757299130415,1.02008215,878.29,876.75,1.194]
[1757299130715,1.02008215,878.28,876.75,1.194]
[1757299132511,1.02008215,878.18,876.75,1.94439426]
[1757299132711,1.02008215,878.15,876.76,0.75039426]
[1757299133410,1.02008215,878.14,876.76,0.75039426]
[1757299133616,1.02008215,878.13,876.75,1.194]
[1757299134914,1.02008215,878.12,876.75,1.194]
[1757299136418,1.02008215,878.11,876.75,1.194]
[1757299137120,1.02008215,878.1,876.75,1.194]
[1757299137519,1.02008215,878.16,876.75,1.194]
[1757299138217,1.02008215,878.15,876.75,1.194]
[1757299138715,1.02008215,878.35,876.91,0.75039426]
[1757299139219,1.02008215,878.34,876.92,0.75039426]
[1757299139519,1.02008215,878.33,876.92,0.75039426]
[1757299141020,1.02008215,878.32,876.91,0.75039426]
[1757299141318,1.02008215,878.32,876.92,0.75039426]
[1757299142217,1.02008215,878.32,876.93,0.75039426]
[1757299142415,1.02008215,878.31,876.94,0.75039426]
[1757299142720,1.02008215,878.3,876.93,0.75039426]
[1757299143220,1.02008215,878.3,876.94,0.75039426]
[1757299143424,1.02008215,878.25,876.97,0.75039426]
[1757299143919,1.02008215,878.24,876.97,0.75039426]
[1757299144419,1.02008215,878.22,876.99,0.75039426]
[1757299144918,1.02008215,878.23,877.0,0.75039426]
[1757299145321,1.02008215,878.2,877.02,0.75039426]
[1757299146622,1.02008215,878.18,877.04,0.75039426]
[1757299146925,1.02008215,878.2,877.03,0.75039426]
[1757299147321,1.02008215,878.13,877.06,0.75039426]
[1757299147525,1.02008215,878.11,877.09,0.75039426]
[1757299148322,1.02008215,878.1,877.1,0.75039426]
[1757299148723,1.02008215,877.89,876.89,0.75039426]
[1757299149226,1.02008215,877.9,876.9,0.75039426]
[1757299149423,1.02008215,877.89,876.91,0.75039426]
[1757299150123,1.02008215,877.94,876.89,0.75039426]
[1757299150323,1.02008215,877.93,876.91,0.75039426]
[1757299151130,1.02008215,877.97,876.89,0.75039426]
[1757299151628,1.02008215,877.96,876.91,0.75039426]
[1757299152429,1.02008215,877.95,876.91,0.75039426]
[1757299152626,1.53388886,878.19,876.75,1.194]
[1757299152627,1.02008215,878.26,877.03,0.75039426]
[1757299152826,1.02008215,878.33,877.13,0.75039426]
[1757299153025,1.02008215,878.32,877.13,0.75039426]
[1757299153229,1.02008215,878.32,876.86,1.02392054]
[1757299153230,1.02008215,878.33,877.12,0.75039426]
[1757299153527,1.02008215,878.38,877.09,0.75039426]
[1757299153730,1.02008215,878.42,877.09,0.75039426]
[1757299154228,1.02008215,878.44,877.08,0.75039426]
[1757299155330,1.02008215,878.45,877.06,0.75039426]
[1757299155528,1.02008215,878.47,877.04,0.75039426]
[1757299155731,1.02008215,878.51,877.02,0.75039426]
[1757299156128,1.02008215,878.52,877.02,0.75039426]
[1757299157128,1.02008215,878.53,877.01,0.75039426]
[1757299158329,1.02008215,878.52,877.01,0.75039426]
[1757299158529,1.02008215,878.5,877.01,0.75039426]
[1757299159634,1.02008215,878.51,877.01,0.75039426]
[1757299160130,1.02008215,878.51,877.0,0.75039426]
[1757299161436,1.02008215,878.52,876.99,0.75039426]
[1757299161637,1.02008215,878.52,877.0,0.75039426]
[1757299161834,1.02008215,878.54,877.02,0.75039426]
[1757299162333,1.02008215,878.53,877.1,0.75039426]
[1757299162835,1.02008215,878.53,877.09,0.75039426]
[1757299163236,1.02008215,878.53,877.08,0.75039426]
[1757299163434,1.02008215,878.51,877.09,0.75039426]
[1757299164338,1.02008215,878.52,877.08,0.75039426]
[1757299165134,1.02008215,878.53,877.08,0.75039426]
[1757299165332,1.02008215,878.49,877.09,0.75039426]
[1757299165537,1.02008215,878.57,877.11,0.75039426]
[1757299165735,1.02008215,878.56,877.1,0.75039426]
[1757299166133,1.02008215,878.57,877.09,0.75039426]
[1757299166737,1.02008215,878.57,877.11,0.75039426]
[1757299166936,1.53388886,878.85,876.84,1.02392054]
[1757299166937,1.02008215,878.65,877.13,0.75039426]
[1757299167338,0.19783799,879.51,877.12,0.75039426]
[1757299167339,1.02008215,878.66,877.12,0.75039426]
[1757299168245,1.02008215,878.66,877.1,0.75039426]
[1757299168639,1.02008215,878.67,877.11,0.75039426]
[1757299169142,1.02008215,878.67,877.1,0.75039426]
[1757299170142,1.02008215,878.68,877.09,0.75039426]
[1757299170638,1.02008215,878.7,876.93,0.75039426]
[1757299170838,1.02008215,878.66,876.89,0.75039426]
[1757299172440,1.02008215,878.65,876.88,0.75039426]
[1757299173446,1.02008215,878.63,876.89,0.75039426]
[1757299174641,1.02008215,878.42,876.89,0.75039426]
[1757299175242,1.02008215,878.36,876.91,0.75039426]
[1757299175540,1.02008215,878.33,876.88,0.75039426]
[1757299177147,1.02008215,878.32,876.88,0.75039426]
[1757299177948,1.02008215,878.29,876.9,0.75039426]
[1757299178141,1.02008215,878.28,876.9,0.75039426]
[1757299178343,1.02008215,878.25,876.89,0.75039426]
[1757299178547,1.02008215,878.03,876.89,0.75039426]
[1757299178748,1.02008215,878.04,876.9,0.75039426]
[1757299179345,1.02008215,878.04,876.91,0.75039426]
[1757299180146,1.02008215,878.06,876.93,0.75039426]